[Event "NJSK 2023 Meisjes C"]
[Site "Almelo, Netherlands"]
[Date "2023.04.30"]
[Round "1.5"]
[White "Luong, Thao"]
[Black "Van Apeldoorn, Vera"]
[Result "0-1"]
[TimeControl "90min/40moves + 30min + 30sec/move"]
[WhiteElo "804"]
[BlackElo "1153"]

1. e4 {[%clk 01:30:59]} e5 {[%clk 01:30:33]} {[%emt 00:00:27]} 2. Nf3 {[%clk
01:31:24]} {[%emt 00:00:06]} Nc6 {[%clk 01:30:36]} {[%emt 00:00:27]} 3. Bc4
{[%clk 01:31:45]} {[%emt 00:00:09]} Nf6 {[%clk 01:30:44]} {[%emt 00:00:22]} 4.
Ng5 {[%clk 01:31:52]} {[%emt 00:00:23]} d5 {[%clk 01:29:54]} {[%emt 00:01:20]}
5. exd5 {[%clk 01:32:11]} {[%emt 00:00:11]} Nxd5 {[%clk 01:27:09]} {[%emt
00:03:15]} 6. Nxf7 {[%clk 01:32:16]} {[%emt 00:00:24]} Kxf7 {[%clk 01:25:53]}
{[%emt 00:01:46]} 7. Qf3+ {[%clk 01:32:36]} {[%emt 00:00:11]} Ke8 {[%clk
01:24:32]} {[%emt 00:01:51]} 8. Bxd5 {[%clk 01:32:53]} {[%emt 00:00:13]} Qf6
{[%clk 01:23:31]} {[%emt 00:01:30]} 9. Nc3 {[%clk 01:31:16]} {[%emt 00:02:07]}
Qxf3 {[%clk 01:19:29]} {[%emt 00:04:32]} 10. Bxf3 {[%clk 01:31:05]} {[%emt
00:00:41]} Bf5 {[%clk 01:17:42]} {[%emt 00:02:18]} 11. Bxc6+ {[%clk 01:30:02]}
{[%emt 00:01:32]} bxc6 {[%clk 01:17:32]} {[%emt 00:00:41]} 12. d3 {[%clk
01:30:02]} {[%emt 00:00:29]} Bd6 {[%clk 01:16:46]} {[%emt 00:01:18]} 13. Bd2
{[%clk 01:28:22]} {[%emt 00:02:08]} Kf7 {[%clk 01:16:12]} {[%emt 00:01:04]} 14.
O-O-O {[%clk 01:28:07]} {[%emt 00:00:45]} Rhe8 {[%clk 01:15:43]} {[%emt
00:01:00]} 15. Rde1 {[%clk 01:27:51]} {[%emt 00:00:45]} Rab8 {[%clk 01:13:04]}
{[%emt 00:03:10]} 16. Re3 {[%clk 01:27:46]} {[%emt 00:00:33]} Kg8 {[%clk
01:13:06]} {[%emt 00:00:30]} 17. Rhe1 {[%clk 01:26:44]} {[%emt 00:01:31]} Bg6
{[%clk 01:10:40]} {[%emt 00:02:57]} 18. Ne4 {[%clk 01:26:10]} {[%emt 00:01:04]}
Bf8 {[%clk 01:07:12]} {[%emt 00:03:58]} 19. Ng3 {[%clk 01:25:41]} {[%emt
00:00:58]} Bd6 {[%clk 01:06:09]} {[%emt 00:01:33]} 20. Ba5 {[%clk 01:24:55]}
{[%emt 00:01:16]} c5 {[%clk 00:57:31]} {[%emt 00:09:09]} 21. Ne4 {[%clk
01:24:26]} {[%emt 00:00:58]} Rbc8 {[%clk 00:52:21]} {[%emt 00:05:41]} 22. Nd2
{[%clk 01:22:43]} {[%emt 00:02:13]} Bf7 {[%clk 00:44:51]} {[%emt 00:08:01]} 23.
Nf3 {[%clk 01:22:44]} {[%emt 00:00:28]} Bd5 {[%clk 00:41:19]} {[%emt 00:04:02]}
24. Nxe5 {[%clk 01:22:02]} {[%emt 00:01:10]} Bxg2 {[%clk 00:38:58]} {[%emt
00:02:51]} 25. Kd1 {[%clk 01:19:13]} {[%emt 00:03:20]} Rf8 {[%clk 00:37:02]}
{[%emt 00:02:26]} 26. R1e2 {[%clk 01:17:05]} {[%emt 00:02:38]} Bxe5 {[%clk
00:35:45]} {[%emt 00:01:48]} 27. Rxe5 {[%clk 01:16:46]} {[%emt 00:00:48]} Bf3
{[%clk 00:36:02]} {[%emt 00:00:14]} 28. Rxc5 {[%clk 01:16:48]} {[%emt
00:00:28]} Rce8 {[%clk 00:35:06]} {[%emt 00:01:26]} 29. Bb4 {[%clk 01:15:30]}
{[%emt 00:01:48]} Bxe2+ {[%clk 00:34:42]} {[%emt 00:00:53]} 30. Kd2 {[%clk
01:15:48]} {[%emt 00:00:13]} Rxf2 {[%clk 00:34:27]} {[%emt 00:00:44]} 31. Rxc7
{[%clk 01:15:16]} {[%emt 00:01:03]} Bg4+ {[%clk 00:34:06]} {[%emt 00:00:51]} 32.
Kc3 {[%clk 01:15:12]} {[%emt 00:00:34]} Rc8 {[%clk 00:33:16]} {[%emt 00:01:19]}
33. Rxc8+ {[%clk 01:15:30]} {[%emt 00:00:12]} Bxc8 {[%clk 00:33:40]} {[%emt
00:00:07]} 34. Bc5 {[%clk 01:15:54]} {[%emt 00:00:06]} Rf7 {[%clk 00:33:42]}
{[%emt 00:00:27]} 35. Kb4 {[%clk 01:15:54]} {[%emt 00:00:30]} g5 {[%clk
00:33:38]} {[%emt 00:00:35]} 36. d4 {[%clk 01:15:56]} {[%emt 00:00:28]} h5
{[%clk 00:33:05]} {[%emt 00:01:03]} 37. d5 {[%clk 01:16:02]} {[%emt 00:00:24]}
h4 {[%clk 00:30:54]} {[%emt 00:02:41]} 38. Bd6 {[%clk 01:15:37]} {[%emt
00:00:55]} g4 {[%clk 00:30:44]} {[%emt 00:00:39]} 39. c4 {[%clk 01:15:56]}
{[%emt 00:00:11]} g3 {[%clk 00:28:49]} {[%emt 00:02:26]} 40. hxg3 {[%clk
01:16:14]} {[%emt 00:00:11]} h3 {[%clk 00:29:15]} {[%emt 00:00:05]} 41. g4
{[%clk 01:15:49]} {[%emt 00:00:55]} Bxg4 {[%clk 00:29:00]} {[%emt 00:00:45]} 42.
c5 {[%clk 01:15:42]} {[%emt 00:00:37]} Rd7 {[%clk 00:28:51]} {[%emt 00:00:38]}
43. Kc4 {[%clk 01:15:07]} {[%emt 00:01:06]} Kf7 {[%clk 00:28:38]} {[%emt
00:00:42]} 44. Bh2 {[%clk 01:14:56]} {[%emt 00:00:42]} Bf3 {[%clk 00:27:10]}
{[%emt 00:01:58]} 45. d6 {[%clk 01:14:40]} {[%emt 00:00:45]} Bc6 {[%clk
00:25:58]} {[%emt 00:01:42]} 46. b4 {[%clk 01:14:48]} {[%emt 00:00:22]} a6
{[%clk 00:25:54]} {[%emt 00:00:35]} 47. a3 {[%clk 01:14:32]} {[%emt 00:00:46]}
Ke6 {[%clk 00:26:03]} {[%emt 00:00:21]} 48. Kd4 {[%clk 01:14:16]} {[%emt
00:00:46]} Rf7 {[%clk 00:26:03]} {[%emt 00:00:30]} 49. Bg3 {[%clk 01:14:04]}
{[%emt 00:00:41]} Rf3 {[%clk 00:26:02]} {[%emt 00:00:31]} 50. Be5 {[%clk
01:13:32]} {[%emt 00:01:02]} Rxa3 {[%clk 00:26:11]} {[%emt 00:00:22]} 51. Bf4
{[%clk 01:12:52]} {[%emt 00:01:10]} Rf3 {[%clk 00:25:25]} {[%emt 00:01:16]} 52.
Bh2 {[%clk 01:12:55]} {[%emt 00:00:26]} Rf7 {[%clk 00:25:12]} {[%emt 00:00:43]}
53. Kc4 {[%clk 01:13:03]} {[%emt 00:00:22]} Kf5 {[%clk 00:25:15]} {[%emt
00:00:28]} 54. Kd4 {[%clk 01:12:45]} {[%emt 00:00:48]} Kg4 {[%clk 00:25:21]}
{[%emt 00:00:24]} 55. Ke5 {[%clk 01:12:56]} {[%emt 00:00:18]} Kf3 {[%clk
00:24:49]} {[%emt 00:01:02]} 56. Ke6 {[%clk 01:12:36]} {[%emt 00:00:50]} Rd7
{[%clk 00:25:07]} {[%emt 00:00:12]} 57. Kf5 {[%clk 01:12:31]} {[%emt 00:00:35]}
Kg2 {[%clk 00:25:24]} {[%emt 00:00:14]} 58. Bf4 {[%clk 01:12:30]} {[%emt
00:00:29]} h2 {[%clk 00:25:31]} {[%emt 00:00:25]} 59. Bxh2 {[%clk 01:12:48]}
{[%emt 00:00:12]} Kxh2 {[%clk 00:25:44]} {[%emt 00:00:17]} 60. Ke5 {[%clk
01:13:04]} {[%emt 00:00:14]} Kg3 {[%clk 00:25:29]} {[%emt 00:00:44]} 61. Kd4
{[%clk 01:13:17]} {[%emt 00:00:18]} Kf4 {[%clk 00:25:17]} {[%emt 00:00:42]} 62.
Kc4 {[%clk 01:13:25]} {[%emt 00:00:21]} Ke4 {[%clk 00:25:17]} {[%emt 00:00:30]}
63. Kc3 {[%clk 01:13:28]} {[%emt 00:00:27]} Rb7 {[%clk 00:25:22]} {[%emt
00:00:26]} 64. Kc4 {[%clk 01:13:37]} {[%emt 00:00:20]} Rh7 {[%clk 00:24:18]}
{[%emt 00:01:32]} 65. Kc3 {[%clk 01:13:45]} {[%emt 00:00:25]} Rh3+ {[%clk
00:24:13]} {[%emt 00:00:35]} 66. Kc4 {[%clk 01:14:08]} {[%emt 00:00:05]} Bb5#
{[%clk 00:24:01]} {[%emt 00:00:07]} 0-1

[Event "NJSK 2023 Meisjes C"]
[Site "Almelo, Netherlands"]
[Date "2023.04.30"]
[Round "1.6"]
[White "Hagen, Carlijn"]
[Black "Ganeshram, Niranjana"]
[Result "1-0"]
[TimeControl "90min/40moves + 30min + 30sec/move"]
[WhiteElo "1132"]
[BlackElo "775"]

1. d4 {[%clk 01:30:57]} {[%emt 00:00:03]} d5 {[%clk 01:30:57]} {[%emt
00:00:04]} 2. Bf4 {[%clk 01:31:20]} {[%emt 00:00:06]} Nf6 {[%clk 01:31:12]}
{[%emt 00:00:16]} 3. e3 {[%clk 01:31:40]} {[%emt 00:00:10]} e6 {[%clk
01:31:25]} {[%emt 00:00:16]} 4. Nf3 {[%clk 01:31:59]} {[%emt 00:00:10]} c5
{[%clk 01:31:48]} {[%emt 00:00:08]} 5. c3 {[%clk 01:32:20]} {[%emt 00:00:09]}
Nc6 {[%clk 01:31:56]} {[%emt 00:00:23]} 6. Bd3 {[%clk 01:28:27]} {[%emt
00:04:23]} c4 {[%clk 01:31:44]} {[%emt 00:00:41]} 7. Bc2 {[%clk 01:28:20]}
{[%emt 00:00:37]} g6 {[%clk 01:31:01]} {[%emt 00:01:14]} 8. Nbd2 {[%clk
01:27:54]} {[%emt 00:00:55]} Bg7 {[%clk 01:31:10]} {[%emt 00:00:21]} 9. O-O
{[%clk 01:26:40]} {[%emt 00:01:45]} O-O {[%clk 01:31:33]} {[%emt 00:00:06]} 10.
Re1 {[%clk 01:26:12]} {[%emt 00:00:58]} Qb6 {[%clk 01:30:53]} {[%emt 00:01:09]}
11. Qb1 {[%clk 01:22:48]} {[%emt 00:03:55]} e5 {[%clk 01:25:31]} {[%emt
00:05:53]} 12. Nxe5 {[%clk 01:16:06]} {[%emt 00:07:12]} Nxe5 {[%clk 01:25:40]}
{[%emt 00:00:21]} 13. Bxe5 {[%clk 01:16:01]} {[%emt 00:00:35]} Ng4 {[%clk
01:25:20]} {[%emt 00:00:49]} 14. Bg3 {[%clk 01:09:26]} {[%emt 00:07:03]} Re8
{[%clk 01:25:28]} {[%emt 00:00:25]} 15. Nf3 {[%clk 01:07:32]} {[%emt 00:02:23]}
Nf6 {[%clk 01:22:42]} {[%emt 00:03:17]} 16. h3 {[%clk 01:01:38]} {[%emt
00:06:23]} Bd7 {[%clk 01:22:16]} {[%emt 00:00:57]} 17. Ne5 {[%clk 00:45:59]}
{[%emt 00:16:09]} Rad8 {[%clk 01:20:49]} {[%emt 00:01:54]} 18. Nxd7 {[%clk
00:44:02]} {[%emt 00:02:30]} Nxd7 {[%clk 01:21:06]} {[%emt 00:00:13]} 19. Ba4
{[%clk 00:43:26]} {[%emt 00:01:06]} Re6 {[%clk 01:18:19]} {[%emt 00:03:17]} 20.
b3 {[%clk 00:32:01]} {[%emt 00:11:55]} Qa5 {[%clk 01:15:40]} {[%emt 00:03:09]}
21. Bxd7 {[%clk 00:31:46]} {[%emt 00:00:45]} Rxd7 {[%clk 01:15:53]} {[%emt
00:00:17]} 22. b4 {[%clk 00:31:53]} {[%emt 00:00:22]} Qa3 {[%clk 01:16:00]}
{[%emt 00:00:24]} 23. Qc2 {[%clk 00:30:06]} {[%emt 00:02:17]} Rde7 {[%clk
01:10:27]} {[%emt 00:06:03]} 24. b5 {[%clk 00:26:21]} {[%emt 00:04:14]} Qa5
{[%clk 01:09:40]} {[%emt 00:01:17]} 25. Rab1 {[%clk 00:22:29]} {[%emt
00:04:22]} Rb6 {[%clk 01:08:10]} {[%emt 00:02:00]} 26. a4 {[%clk 00:22:45]}
{[%emt 00:00:14]} Kf8 {[%clk 01:07:29]} {[%emt 00:01:12]} 27. Rb4 {[%clk
00:18:46]} {[%emt 00:04:28]} Bxd4 {[%clk 01:07:29]} {[%emt 00:00:30]} 28. Qd2
{[%clk 00:16:05]} {[%emt 00:03:12]} Bc5 {[%clk 01:07:30]} {[%emt 00:00:28]} 29.
Rbb1 {[%clk 00:14:51]} {[%emt 00:01:44]} Qxa4 {[%clk 01:07:27]} {[%emt
00:00:33]} 30. Qxd5 {[%clk 00:15:07]} {[%emt 00:00:15]} Rxb5 {[%clk 01:07:31]}
{[%emt 00:00:25]} 31. Ra1 {[%clk 00:14:23]} {[%emt 00:01:15]} Ba3 {[%clk
01:07:14]} {[%emt 00:00:46]} 32. Rxa3 {[%clk 00:13:59]} {[%emt 00:00:55]} Qxa3
{[%clk 01:07:18]} {[%emt 00:00:25]} 33. Qxb5 {[%clk 00:14:28]} {[%emt
00:00:02]} Qxc3 {[%clk 01:07:36]} {[%emt 00:00:12]} 34. Rd1 {[%clk 00:14:31]}
{[%emt 00:00:27]} Qc2 {[%clk 01:07:21]} {[%emt 00:00:45]} 35. Qd5 {[%clk
00:13:54]} {[%emt 00:01:06]} Re6 {[%clk 01:06:50]} {[%emt 00:01:02]} 36. Bf4
{[%clk 00:13:47]} {[%emt 00:00:35]} Re8 {[%clk 01:06:44]} {[%emt 00:00:37]} 37.
Qd4 {[%clk 00:13:46]} {[%emt 00:00:31]} c3 {[%clk 01:06:55]} {[%emt 00:00:21]}
38. Bh6+ {[%clk 00:14:03]} {[%emt 00:00:12]} Ke7 {[%clk 01:07:07]} {[%emt
00:00:18]} 39. Qd6# {[%clk 00:14:23]} {[%emt 00:00:08]} 1-0

[Event "NJSK 2023 Meisjes C"]
[Site "Almelo, Netherlands"]
[Date "2023.05.01"]
[Round "2.1"]
[White "Westerhof, Fleur"]
[Black "Hagen, Carlijn"]
[Result "1/2-1/2"]
[TimeControl "90min/40moves + 30min + 30sec/move"]
[WhiteElo "1743"]
[BlackElo "1132"]

1. e4 {[%clk 01:30:57]} {[%emt 00:00:01]} e5 {[%clk 01:30:54]} {[%emt
00:00:07]} 2. Nf3 {[%clk 01:31:21]} {[%emt 00:00:06]} Nc6 {[%clk 01:31:12]}
{[%emt 00:00:11]} 3. d4 {[%clk 01:31:39]} {[%emt 00:00:12]} exd4 {[%clk
01:31:27]} {[%emt 00:00:16]} 4. Bc4 {[%clk 01:32:00]} {[%emt 00:00:09]} Be7
{[%clk 01:23:41]} {[%emt 00:08:15]} 5. Nxd4 {[%clk 01:30:07]} {[%emt 00:02:22]}
Nf6 {[%clk 01:16:24]} {[%emt 00:07:47]} 6. Nc3 {[%clk 01:24:03]} {[%emt
00:06:34]} O-O {[%clk 01:04:03]} {[%emt 00:12:51]} 7. O-O {[%clk 01:15:42]}
{[%emt 00:08:51]} Re8 {[%clk 00:59:43]} {[%emt 00:04:49]} 8. Re1 {[%clk
00:55:39]} {[%emt 00:20:33]} Ne5 {[%clk 00:43:19]} {[%emt 00:16:55]} 9. Bf1
{[%clk 00:47:58]} {[%emt 00:08:12]} Bc5 {[%clk 00:38:03]} {[%emt 00:05:45]} 10.
Nb3 {[%clk 00:45:21]} {[%emt 00:03:07]} Bb6 {[%clk 00:36:04]} {[%emt 00:02:29]}
11. Na4 {[%clk 00:41:54]} {[%emt 00:03:57]} d6 {[%clk 00:31:29]} {[%emt
00:05:04]} 12. Nxb6 {[%clk 00:38:04]} {[%emt 00:04:21]} axb6 {[%clk 00:31:43]}
{[%emt 00:00:16]} 13. Bg5 {[%clk 00:32:21]} {[%emt 00:06:11]} h6 {[%clk
00:29:44]} {[%emt 00:02:30]} 14. Bh4 {[%clk 00:31:33]} {[%emt 00:01:18]} Ng6
{[%clk 00:29:26]} {[%emt 00:00:48]} 15. Bxf6 {[%clk 00:30:23]} {[%emt
00:01:41]} Qxf6 {[%clk 00:29:48]} {[%emt 00:00:09]} 16. c3 {[%clk 00:28:55]}
{[%emt 00:01:57]} Qg5 {[%clk 00:26:36]} {[%emt 00:03:41]} 17. Nd4 {[%clk
00:21:22]} {[%emt 00:08:04]} Nf4 {[%clk 00:23:13]} {[%emt 00:03:53]} 18. Kh1
{[%clk 00:18:42]} {[%emt 00:03:11]} Qg6 {[%clk 00:18:07]} {[%emt 00:05:35]} 19.
Qf3 {[%clk 00:15:45]} {[%emt 00:03:26]} Nh5 {[%clk 00:14:42]} {[%emt 00:03:55]}
20. Qd3 {[%clk 00:08:39]} {[%emt 00:07:36]} Bd7 {[%clk 00:11:13]} {[%emt
00:03:59]} 21. g3 {[%clk 00:07:18]} {[%emt 00:01:51]} c5 {[%clk 00:10:52]}
{[%emt 00:00:51]} 22. Nf5 {[%clk 00:05:48]} {[%emt 00:01:58]} 1/2-1/2

[Event "NJSK 2023 Meisjes C"]
[Site "Almelo, Netherlands"]
[Date "2023.05.01"]
[Round "2.2"]
[White "Fu, Janice"]
[Black "Rutten, Lenthe"]
[Result "1-0"]
[TimeControl "90min/40moves + 30min + 30sec/move"]
[WhiteElo "1408"]
[BlackElo "604"]

1. e4 {[%clk 01:30:58]} {[%emt 00:00:01]} e5 {[%clk 01:30:59]} {[%emt
00:00:01]} 2. Nf3 {[%clk 01:31:19]} {[%emt 00:00:09]} Nc6 {[%clk 01:31:25]}
{[%emt 00:00:05]} 3. Bc4 {[%clk 01:31:33]} {[%emt 00:00:15]} h6 {[%clk
01:31:18]} {[%emt 00:00:37]} 4. c3 {[%clk 01:31:02]} {[%emt 00:01:00]} Nf6
{[%clk 01:31:13]} {[%emt 00:00:34]} 5. d3 {[%clk 01:30:34]} {[%emt 00:00:58]}
Bc5 {[%clk 01:31:02]} {[%emt 00:00:41]} 6. d4 {[%clk 01:29:14]} {[%emt
00:01:51]} Bd6 {[%clk 01:30:41]} {[%emt 00:00:50]} 7. d5 {[%clk 01:26:36]}
{[%emt 00:03:09]} Ne7 {[%clk 01:29:53]} {[%emt 00:01:18]} 8. Bd3 {[%clk
01:22:52]} {[%emt 00:04:15]} O-O {[%clk 01:28:37]} {[%emt 00:01:45]} 9. Nbd2
{[%clk 01:22:08]} {[%emt 00:01:15]} c6 {[%clk 01:27:51]} {[%emt 00:01:16]} 10.
Nc4 {[%clk 01:20:59]} {[%emt 00:01:37]} cxd5 {[%clk 01:26:25]} {[%emt
00:01:57]} 11. Nxd6 {[%clk 01:20:18]} {[%emt 00:01:12]} Qb6 {[%clk 01:23:52]}
{[%emt 00:03:02]} 12. Nxc8 {[%clk 01:19:43]} {[%emt 00:01:06]} Raxc8 {[%clk
01:24:00]} {[%emt 00:00:21]} 13. Nd2 {[%clk 01:13:52]} {[%emt 00:06:20]} dxe4
{[%clk 01:23:22]} {[%emt 00:01:09]} 14. Nxe4 {[%clk 01:13:56]} {[%emt
00:00:26]} Nxe4 {[%clk 01:22:52]} {[%emt 00:00:59]} 15. Bxe4 {[%clk 01:14:15]}
{[%emt 00:00:12]} Rc4 {[%clk 01:21:52]} {[%emt 00:01:30]} 16. Bd5 {[%clk
01:13:33]} {[%emt 00:01:12]} Nxd5 {[%clk 01:21:41]} {[%emt 00:00:40]} 17. Qxd5
{[%clk 01:13:49]} {[%emt 00:00:14]} Qc7 {[%clk 01:21:28]} {[%emt 00:00:42]} 18.
O-O {[%clk 01:13:28]} {[%emt 00:00:51]} Rc5 {[%clk 01:20:50]} {[%emt 00:01:09]}
19. Qd3 {[%clk 01:12:44]} {[%emt 00:01:13]} d5 {[%clk 01:20:29]} {[%emt
00:00:51]} 20. Qg3 {[%clk 01:12:06]} {[%emt 00:01:07]} Kh7 {[%clk 01:20:32]}
{[%emt 00:00:28]} 21. f4 {[%clk 01:11:43]} {[%emt 00:00:53]} d4 {[%clk
01:19:55]} {[%emt 00:01:08]} 22. cxd4 {[%clk 01:11:17]} {[%emt 00:00:56]} exd4
{[%clk 01:20:04]} {[%emt 00:00:19]} 23. Qd3+ {[%clk 01:11:16]} {[%emt
00:00:30]} g6 {[%clk 01:19:35]} {[%emt 00:00:59]} 24. f5 {[%clk 01:09:33]}
{[%emt 00:02:14]} Rd8 {[%clk 01:18:49]} {[%emt 00:01:16]} 25. Bf4 {[%clk
01:08:29]} {[%emt 00:01:34]} Qc6 {[%clk 01:18:19]} {[%emt 00:01:00]} 26. fxg6+
{[%clk 01:07:21]} {[%emt 00:01:38]} fxg6 {[%clk 01:18:27]} {[%emt 00:00:22]} 27.
Rac1 {[%clk 01:07:25]} {[%emt 00:00:26]} Qb5 {[%clk 01:17:43]} {[%emt
00:01:14]} 28. Qxb5 {[%clk 01:07:17]} {[%emt 00:00:38]} Rxb5 {[%clk 01:18:03]}
{[%emt 00:00:10]} 29. Rc7+ {[%clk 01:07:24]} {[%emt 00:00:23]} Kg8 {[%clk
01:17:44]} {[%emt 00:00:49]} 30. b3 {[%clk 01:02:43]} {[%emt 00:05:11]} g5
{[%clk 01:17:17]} {[%emt 00:00:57]} 31. Bd2 {[%clk 01:02:34]} {[%emt 00:00:38]}
Rf8 {[%clk 01:16:39]} {[%emt 00:01:08]} 32. Rxf8+ {[%clk 01:02:21]} {[%emt
00:00:42]} Kxf8 {[%clk 01:17:01]} {[%emt 00:00:09]} 33. Rd7 {[%clk 01:02:41]}
{[%emt 00:00:10]} Ra5 {[%clk 01:16:49]} {[%emt 00:00:43]} 34. Bxa5 {[%clk
01:02:21]} {[%emt 00:00:50]} 1-0

[Event "NJSK 2023 Meisjes C"]
[Site "Almelo, Netherlands"]
[Date "2023.05.01"]
[Round "2.3"]
[White "Van Apeldoorn, Vera"]
[Black "Jorritsma, Eli Alia"]
[Result "1/2-1/2"]
[TimeControl "90min/40moves + 30min + 30sec/move"]
[WhiteElo "1153"]
[BlackElo "1330"]

1. d4 {[%clk 01:30:57]} {[%emt 00:00:03]} g6 {[%clk 01:30:52]} {[%emt
00:00:08]} 2. e4 {[%clk 01:31:14]} {[%emt 00:00:13]} Bg7 {[%clk 01:31:08]}
{[%emt 00:00:14]} 3. Nc3 {[%clk 01:31:25]} {[%emt 00:00:20]} d6 {[%clk
01:31:09]} {[%emt 00:00:28]} 4. Be3 {[%clk 01:31:16]} {[%emt 00:00:39]} Nd7
{[%clk 01:31:10]} {[%emt 00:00:29]} 5. Qd2 {[%clk 01:30:01]} {[%emt 00:01:46]}
a6 {[%clk 01:29:01]} {[%emt 00:02:38]} 6. f3 {[%clk 01:29:34]} {[%emt
00:00:57]} b5 {[%clk 01:25:42]} {[%emt 00:03:49]} 7. g4 {[%clk 01:28:05]}
{[%emt 00:02:00]} Bb7 {[%clk 01:23:36]} {[%emt 00:02:35]} 8. h4 {[%clk
01:25:35]} {[%emt 00:03:01]} Ngf6 {[%clk 01:09:45]} {[%emt 00:14:21]} 9. Bh6
{[%clk 01:18:47]} {[%emt 00:07:18]} Bxh6 {[%clk 00:55:44]} {[%emt 00:14:31]} 10.
Qxh6 {[%clk 01:18:00]} {[%emt 00:01:17]} c6 {[%clk 00:51:08]} {[%emt 00:05:06]}
11. Nge2 {[%clk 01:00:09]} {[%emt 00:18:21]} Qc7 {[%clk 00:46:42]} {[%emt
00:04:56]} 12. Qd2 {[%clk 00:54:57]} {[%emt 00:05:43]} O-O-O {[%clk 00:45:32]}
{[%emt 00:01:40]} 13. Ng3 {[%clk 00:51:16]} {[%emt 00:04:11]} e5 {[%clk
00:32:40]} {[%emt 00:13:22]} 14. O-O-O {[%clk 00:42:30]} {[%emt 00:09:16]} h5
{[%clk 00:20:59]} {[%emt 00:12:11]} 15. g5 {[%clk 00:39:23]} {[%emt 00:03:37]}
Nh7 {[%clk 00:18:28]} {[%emt 00:03:01]} 16. Bh3 {[%clk 00:36:03]} {[%emt
00:03:50]} Nhf8 {[%clk 00:09:09]} {[%emt 00:09:49]} 17. Rhf1 {[%clk 00:30:25]}
{[%emt 00:06:08]} Ne6 {[%clk 00:07:13]} {[%emt 00:02:26]} 18. Nge2 {[%clk
00:27:25]} {[%emt 00:03:30]} Rhf8 {[%clk 00:06:42]} {[%emt 00:01:01]} 19. a3
{[%clk 00:25:16]} {[%emt 00:02:40]} Kb8 {[%clk 00:04:37]} {[%emt 00:02:35]} 20.
Kb1 {[%clk 00:21:18]} {[%emt 00:04:28]} a5 {[%clk 00:03:20]} {[%emt 00:01:47]}
21. Rde1 {[%clk 00:17:17]} {[%emt 00:04:30]} a4 {[%clk 00:03:00]} {[%emt
00:00:51]} 1/2-1/2